[Event "Catalan Youth Championship 2024"]
[Site "Cambrils"]
[Date "2024.03.25"]
[Round "5.17"]
[White "Ano Pla, Gerard"]
[Black "Valle Luis, Leo"]
[Result "1-0"]
[ECO "A67"]
[WhiteElo "2230"]
[BlackElo "2230"]
[Annotator "RC"]
[PlyCount "149"]
[EventDate "2024.03.13"]
[EventType "swiss"]
[EventCountry "ESP"]
[SourceTitle "playchess.com"]
[Source "ChessBase"]
[SourceQuality "1"]
[TimeControl "5400+30"]

1. d4 {[%emt 0:00:01]} Nf6 {[%emt 0:00:04]} 2. c4 {[%emt 0:00:02]} e6 {[%emt 0:00:07]} 3. Nc3 {[%emt 0:00:04]} c5 {[%emt 0:00:03]} 4. d5 {[%emt 0:00:02]} exd5 {[%emt 0:00:10]} 5. cxd5 {[%emt 0:00:01]} d6 {[%emt 0:00:08]} 6. e4 {[%emt 0:01:38]} g6 {[%emt 0:00:26]} 7. f4 {[%emt 0:00:28]} Bg7 {[%emt 0:00:13]} 8. Bb5+ {[%emt 0:00:07]} Nfd7 {[%emt 0:00:13]} 9. Be2 {[%emt 0:00:03]} a6 {[%emt 0:01:34]} 10. a4 {[%emt 0:00:12]} Qh4+ {[%emt 0:00:31]} 11. g3 {[%emt 0:00:02]} Qd8 {[%emt 0:00:01]} 12. Nf3 {[%emt 0:01:44]} O-O {[%emt 0:00:03]} 13. O-O {[%emt 0:00:35]} Re8 {[%emt 0:00:08]} 14. Kg2 {[%emt 0:02:24]} Nf6 {[%emt 0:01:11]} 15. Nd2 {[%emt 0:21:20]} Nbd7 {[%emt 0:02:09]} 16. Qc2 {[%emt 0:05:56]} Rb8 {[%emt 0:00:17]} 17. Re1 {[%emt 0:06:56]} Nf8 {[%emt 0:11:26]} 18. a5 {[%emt 0:05:15]} b5 {[%emt 0:04:31]} 19. axb6 {[%emt 0:00:57]} Rxb6 {[%emt 0:00:11]} 20. Nc4 {[%emt 0:00:34]} Rb4 {[%emt 0:04:47]} 21. Bd2 {[%emt 0:02:20]} Ng4 {[%emt 0:02:48]} 22. Nd1 {[%emt 0:06:16]} Rb8 {[%emt 0:02:33]} 23. h3 {[%emt 0:12:42]} Nf6 {[%emt 0:11:26]} 24. Bf3 {[%emt 0:00:09]} Re7 {[%emt 0:01:46]} 25. Nf2 {[%emt 0:03:18]} Ne8 {[%emt 0:01:17]} 26. e5 {[%emt 0:05:16]} Bf5 {[%emt 0:04:52]} 27. Qd1 {[%emt 0:03:43]} Reb7 {[%emt 0:03:22]} 28. Rxa6 {[%emt 0:01:35]} dxe5 {[%emt 0:02:52]} 29. fxe5 {[%emt 0:00:43]} Rb3 {[%emt 0:01:39]} 30. Bc3 {[%emt 0:01:03]} Nc7 {[%emt 0:03:35]} 31. Rd6 {[%emt 0:00:37]} Qg5 {[%emt 0:03:13]} 32. h4 {[%emt 0:00:19]} Qe7 {[%emt 0:00:14]} 33. Rc6 {[%emt 0:03:02]} Ne8 {[%emt 0:01:03]} 34. Ra6 {[%emt 0:03:10]} Bc8 {[%emt 0:06:02]} 35. Ra1 {[%emt 0:01:34]} Qc7 {[%emt 0:04:52]} 36. Ne4 {[%emt 0:02:00]} Bf5 {[%emt 0:02:48]} 37. Nf2 {[%emt 0:03:18]} Bc8 {[%emt 0:00:27]} 38. Na5 {[%emt 0:01:32]} R3b6 {[%emt 0:02:41]} 39. Nc6 {[%emt 0:00:17]} Rxc6 {[%emt 0:00:35]} 40. dxc6 {[%emt 0:00:01]} Be6 {[%emt 0:00:41]} 41. Qa4 {[%emt 0:01:44]} g5 {[%emt 0:08:39]} 42. h5 {[%emt 0:00:27]} Qc8 {[%emt 0:01:37]} 43. Qa6 {[%emt 0:00:29]} g4 {[%emt 0:00:12]} 44. Be4 {[%emt 0:00:11]} Qd8 {[%emt 0:00:16]} 45. Qa7 {[%emt 0:00:21]} Rc8 {[%emt 0:02:32]} 46. Qxc5 {[%emt 0:00:07]} Nd7 {[%emt 0:00:14]} 47. Qa5 {[%emt 0:00:51]} Nb6 {[%emt 0:02:26]} 48. Red1 {[%emt 0:00:08]} Qc7 {[%emt 0:00:06]} 49. Qa7 {[%emt 0:00:49]} Nc4 {[%emt 0:00:42]} 50. Qxc7 {[%emt 0:00:40]} Nxc7 {[%emt 0:00:11]} 51. Re1 {[%emt 0:00:25]} Nb5 {[%emt 0:00:24]} 52. Nd3 {[%emt 0:00:32]} Nxc3 {[%emt 0:00:55]} 53. bxc3 {[%emt 0:00:02]} Nd2 54. Nb4 {[%emt 0:09:28]} Nxe4 {[%emt 0:06:52]} 55. Rxe4 {[%emt 0:00:00]} Bf8 {[%emt 0:00:30]} 56. Rd1 {[%emt 0:00:00]} Bg7 {[%emt 0:00:03]} 57. Ra1 {[%emt 0:00:00]} Bf8 {[%emt 0:00:21]} 58. Rd1 Bxb4 59. cxb4 {[%emt 0:00:00]} Rxc6 {[%emt 0:00:37]} 60. h6 {[%emt 0:00:00]} Kf8 {[%emt 0:00:23]} 61. Rd2 {[%emt 0:00:00]} Ke7 {[%emt 0:01:12]} 62. b5 {[%emt 0:00:00]} Rb6 {[%emt 0:01:22]} 63. Rb4 {[%emt 0:00:00]} Bd7 {[%emt 0:00:13]} 64. Kf2 {[%emt 0:00:00]} Be8 {[%emt 0:02:06]} 65. Ke3 {[%emt 0:00:00]} Bd7 {[%emt 0:02:03]} 66. Rd6 {[%emt 0:00:00]} Rb8 {[%emt 0:01:49]} 67. b6 {[%emt 0:00:00]} Bc8 {[%emt 0:00:04]} 68. Rc4 {[%emt 0:00:00]} Bb7 {[%emt 0:00:40]} 69. Rc7+ {[%emt 0:00:00]} Ke8 {[%emt 0:00:11]} 70. Rdd7 {[%emt 0:00:00]} Bc8 {[%emt 0:00:47]} 71. Re7+ {[%emt 0:00:00]} Kd8 {[%emt 0:00:06]} 72. b7 {[%emt 0:00:00]} Be6 {[%emt 0:00:14]} 73. Rxf7 {[%emt 0:00:00]} Bf5 {[%emt 0:01:02]} 74. Rxh7 {[%emt 0:00:00]} Be6 {[%emt 0:00:08]} 75. Rcg7 {[%emt 0:00:00]} 1-0

[Event "Catalan Youth Championship 2024"]
[Site "Cambrils"]
[Date "2024.03.25"]
[Round "5.18"]
[White "Garcia Caro, Juan Alber"]
[Black "Funes Ostos, Aitor"]
[Result "0-1"]
[ECO "B13"]
[WhiteElo "2128"]
[BlackElo "2125"]
[Annotator "RC"]
[PlyCount "102"]
[EventDate "2024.03.13"]
[EventType "swiss"]
[EventCountry "ESP"]
[SourceTitle "playchess.com"]
[Source "ChessBase"]
[SourceQuality "1"]
[TimeControl "5400+30"]

1. e4 {[%emt 1:31:00]} c6 {[%emt 1:31:00]} 2. d4 {[%emt 0:00:30]} d5 {[%emt 0:00:30]} 3. exd5 {[%emt 0:00:30]} cxd5 {[%emt 0:00:30]} 4. Bd3 {[%emt 0:00:30]} Nf6 {[%emt 0:00:30]} 5. c3 {[%emt 0:00:30]} Bg4 {[%emt 0:00:30]} 6. Ne2 {[%emt 0:00:30]} Bxe2 {[%emt 0:00:30]} 7. Qxe2 {[%emt 0:00:30]} Qc7 {[%emt 0:00:30]} 8. O-O {[%emt 0:00:30]} e6 {[%emt 0:00:30]} 9. Nd2 {[%emt 0:00:30]} Bd6 {[%emt 0:00:30]} 10. Nf3 {[%emt 0:00:30]} Nc6 {[%emt 0:00:30]} 11. Re1 {[%emt 0:00:30]} O-O {[%emt 0:00:30]} 12. Ne5 {[%emt 0:00:30]} Bxe5 {[%emt 0:00:30]} 13. dxe5 {[%emt 0:00:30]} Nd7 {[%emt 0:00:30]} 14. Bf4 {[%emt 0:00:30]} Nc5 {[%emt 0:00:30]} 15. Rad1 {[%emt 0:00:30]} f5 {[%emt 0:00:30]} 16. Qe3 {[%emt 0:00:30]} b6 {[%emt 0:00:30]} 17. Bb5 {[%emt 0:00:30]} Ne7 {[%emt 0:00:30]} 18. f3 {[%emt 0:00:30]} a6 {[%emt 0:00:30]} 19. Bf1 {[%emt 0:00:30]} b5 {[%emt 0:00:30]} 20. Qf2 {[%emt 0:00:30]} Nd7 {[%emt 0:00:30]} 21. Be3 {[%emt 0:00:30]} f4 {[%emt 0:00:30]} 22. Bd4 Nc6 {[%emt 0:00:30]} 23. Bd3 {[%emt 0:01:00]} Rae8 {[%emt 0:00:30]} 24. Qh4 {[%emt 0:00:30]} g6 {[%emt 0:00:30]} 25. Qg5 {[%emt 0:00:30]} Qd8 {[%emt 0:00:30]} 26. Qg4 {[%emt 0:00:30]} Qe7 {[%emt 0:00:30]} 27. h4 {[%emt 0:00:30]} Qg7 {[%emt 0:00:30]} 28. Qg5 {[%emt 0:00:30]} Ne7 {[%emt 0:00:30]} 29. Kf2 {[%emt 0:00:30]} h5 {[%emt 0:00:30]} 30. g4 {[%emt 0:00:30]} fxg3+ {[%emt 0:00:30]} 31. Qxg3 {[%emt 0:00:30]} Nf5 {[%emt 0:00:30]} 32. Qg5 {[%emt 0:00:30]} Rf7 {[%emt 0:00:30]} 33. Rg1 {[%emt 0:00:30]} Kh7 {[%emt 0:00:30]} 34. f4 {[%emt 0:00:30]} Rg8 {[%emt 0:00:30]} 35. Ke2 {[%emt 0:00:30]} Qf8 {[%emt 0:00:30]} 36. a3 {[%emt 0:00:30]} Nc5 {[%emt 0:00:30]} 37. Bc2 {[%emt 0:00:30]} Ne4 {[%emt 0:00:30]} 38. Bxe4 {[%emt 0:00:30]} dxe4 39. Qg2 {[%emt 0:00:30]} Nxh4 {[%emt 0:01:00]} 40. Qxe4 Rxf4 {[%emt 0:00:30]} 41. Qe3 {[%emt 0:01:00]} Qf5 {[%emt 0:00:30]} 42. Rdf1 {[%emt 0:00:30]} Qc2+ {[%emt 0:00:30]} 43. Qd2 {[%emt 0:00:30]} Re4+ {[%emt 0:00:30]} 44. Be3 {[%emt 0:00:30]} Qxd2+ {[%emt 0:00:30]} 45. Kxd2 {[%emt 0:00:30]} Rd8+ {[%emt 0:00:30]} 46. Bd4 {[%emt 0:00:30]} Nf5 {[%emt 0:00:30]} 47. Kd3 {[%emt 0:00:30]} Rxe5 {[%emt 0:00:30]} 48. Kc2 {[%emt 0:00:30]} Nxd4+ {[%emt 0:00:30]} 49. cxd4 {[%emt 0:00:30]} Rxd4 {[%emt 0:00:30]} 50. Rf7+ {[%emt 0:00:30]} Kh6 {[%emt 0:00:30]} 51. Rf6 {[%emt 0:00:30]} Rg4 {[%emt 0:00:30]} 0-1

[Event "Catalan Youth Championship 2024"]
[Site "Cambrils"]
[Date "2024.03.25"]
[Round "5.19"]
[White "Porta Isant, Lluis"]
[Black "Creixans Comerma, Pol"]
[Result "1-0"]
[ECO "B30"]
[WhiteElo "2115"]
[BlackElo "1981"]
[Annotator "RC"]
[PlyCount "67"]
[EventDate "2024.03.13"]
[EventType "swiss"]
[EventCountry "ESP"]
[SourceTitle "playchess.com"]
[Source "ChessBase"]
[SourceQuality "1"]
[TimeControl "5400+30"]

1. e4 {[%emt 0:00:12]} c5 {[%emt 0:01:27]} 2. Nf3 {[%emt 0:00:23]} Nc6 {[%emt 0:00:05]} 3. Bb5 {[%emt 0:01:02]} Na5 {[%emt 1:30:28]} 4. c3 {[%emt 0:05:22]} a6 {[%emt 0:00:00]} 5. Ba4 {[%emt 0:01:50]} b5 {[%emt 0:00:00]} 6. Bc2 {[%emt 0:00:04]} e6 {[%emt 0:01:30]} 7. O-O {[%emt 0:00:19]} Bb7 {[%emt 0:00:30]} 8. d4 {[%emt 0:00:35]} cxd4 {[%emt 0:00:00]} 9. cxd4 {[%emt 1:25:13]} Nf6 {[%emt 0:00:00]} 10. Re1 {[%emt 0:00:00]} Rc8 {[%emt 0:00:00]} 11. d5 {[%emt 0:01:00]} Bc5 {[%emt 0:02:00]} 12. Bg5 {[%emt 0:00:30]} Qc7 {[%emt 0:00:30]} 13. Bd3 {[%emt 0:00:30]} O-O {[%emt 0:00:00]} 14. Bxf6 {[%emt 0:00:00]} gxf6 {[%emt 0:01:00]} 15. Qd2 {[%emt 0:01:00]} Kg7 {[%emt 0:00:30]} 16. e5 {[%emt 0:00:00]} f5 {[%emt 0:00:00]} 17. b4 {[%emt 0:01:00]} Bxb4 {[%emt 0:00:00]} 18. Qxb4 {[%emt 0:00:30]} Bxd5 {[%emt 0:01:30]} 19. Qf4 {[%emt 0:00:30]} Rg8 {[%emt 0:00:30]} 20. Nbd2 {[%emt 0:00:00]} Kh8 {[%emt 0:00:30]} 21. Rad1 {[%emt 0:00:00]} Rg4 {[%emt 0:00:30]} 22. Qh6 {[%emt 0:00:00]} Rg6 {[%emt 0:00:00]} 23. Qh4 {[%emt 0:02:00]} Bxa2 {[%emt 0:00:00]} 24. Ng5 {[%emt 0:00:30]} Rg7 {[%emt 0:00:00]} 25. Qh5 {[%emt 0:00:00]} Kg8 {[%emt 0:02:00]} 26. Ndf3 {[%emt 0:01:00]} Bc4 {[%emt 0:00:00]} 27. Bxc4 {[%emt 0:00:30]} bxc4 {[%emt 0:00:00]} 28. g4 {[%emt 0:00:00]} fxg4 {[%emt 0:00:00]} 29. Nd2 {[%emt 0:00:00]} c3 {[%emt 0:00:00]} 30. Nde4 {[%emt 0:00:00]} Qxe5 {[%emt 0:00:00]} 31. Rxd7 {[%emt 0:02:00]} Qf4 {[%emt 0:00:00]} 32. Qh6 {[%emt 0:00:30]} Kh8 {[%emt 0:00:00]} 33. Qxg7+ {[%emt 0:00:00]} Kxg7 {[%emt 0:00:00]} 34. Nxe6+ {[%emt 0:01:00]} 1-0

[Event "Catalan Youth Championship 2024"]
[Site "Cambrils"]
[Date "2024.03.25"]
[Round "5.20"]
[White "Broadbent Brun, Jensen"]
[Black "Serrahima Susany, Ramon"]
[Result "0-1"]
[ECO "E54"]
[WhiteElo "1917"]
[BlackElo "2029"]
[Annotator "NA RC"]
[PlyCount "102"]
[EventDate "2024.03.13"]
[EventType "swiss"]
[EventCountry "ESP"]
[SourceTitle "playchess.com"]
[Source "ChessBase"]
[SourceQuality "1"]
[TimeControl "5400+30"]

1. d4 {[%emt 0:00:03]} d5 {[%emt 0:00:04]} 2. c4 {[%emt 0:00:08]} e6 {[%emt 0:00:03]} 3. Nf3 {[%emt 0:00:07]} Nf6 {[%emt 0:00:05]} 4. Nc3 {[%emt 0:00:10]} dxc4 {[%emt 0:01:32]} 5. e3 {[%emt 0:00:32]} c5 {[%emt 0:01:11]} 6. Bxc4 {[%emt 0:01:17]} Nc6 {[%emt 0:00:34]} 7. O-O {[%emt 0:00:48]} cxd4 {[%emt 0:00:16]} 8. exd4 {[%emt 0:00:20]} Be7 {[%emt 0:00:15]} 9. Bg5 {[%emt 0:01:32]} O-O {[%emt 0:00:24]} 10. a3 {[%emt 0:01:44]} b6 {[%emt 0:01:44]} 11. Qd3 {[%emt 0:03:43]} Bb7 {[%emt 0:04:30]} 12. Rac1 {[%emt 0:02:22]} Rc8 {[%emt 0:02:08]} 13. Ba2 {[%emt 0:02:38]} h6 {[%emt 0:00:57]} 14. Bxf6 {[%emt 0:08:59]} Bxf6 {[%emt 0:00:02]} 15. d5 {[%emt 0:01:17]} exd5 {[%emt 0:03:03]} 16. Nxd5 {[%emt 0:08:11]} Bxb2 {[%emt 0:05:53]} 17. Rcd1 {[%emt 0:00:27]} Ne7 {[%emt 0:10:17]} 18. Qb5 {[%emt 0:05:11]} Nxd5 {[%emt 0:00:37]} 19. Bxd5 {[%emt 0:01:18]} Bxd5 {[%emt 0:00:34]} 20. Rxd5 {[%emt 0:00:17]} Qf6 {[%emt 0:01:13]} 21. Ne5 {[%emt 0:09:29]} Bxe5 {[%emt 0:00:38]} 22. Rxe5 {[%emt 0:00:09]} Rc3 {[%emt 0:06:07]} 23. a4 {[%emt 0:04:03]} Ra3 {[%emt 0:23:21]} 24. Re8 {[%emt 0:11:54]} Rxe8 {[%emt 0:00:17]} 25. Qxe8+ {[%emt 0:00:11]} Kh7 {[%emt 0:00:03]} 26. Qe4+ {[%emt 0:00:37]} g6 {[%emt 0:07:37]} 27. h4 {[%emt 0:10:20]} Ra1 {[%emt 0:02:42]} 28. Rxa1 {[%emt 0:01:10]} Qxa1+ {[%emt 0:00:03]} 29. Kh2 {[%emt 0:00:08]} Kg7 {[%emt 0:02:00]} 30. g3 {[%emt 0:06:42]} Qf6 {[%emt 0:01:11]} 31. Kg2 {[%emt 0:00:17]} Qf5 {[%emt 0:02:37]} 32. Qb7 {[%emt 0:01:46]} a5 {[%emt 0:02:05]} 33. Qc6 {[%emt 0:00:29]} Qc5 {[%emt 0:01:02]} 34. Qe4 {[%emt 0:02:42]} b5 {[%emt 0:00:19]} 35. axb5 {[%emt 0:00:42]} Qxb5 {[%emt 0:00:08]} 36. Qd4+ {[%emt 0:00:18]} Kh7 {[%emt 0:00:18]} 37. Qf4 {[%emt 0:03:26]} Qf5 {[%emt 0:00:29]} 38. Qc4 {[%emt 0:00:44]} h5 {[%emt 0:00:43]} 39. Qa4 {[%emt 0:01:22]} Qd5+ {[%emt 0:00:48]} 40. Kg1 {[%emt 0:00:19]} Qc5 {[%emt 0:01:22]} 41. Qa2 {[%emt 0:01:11]} Kg8 {[%emt 0:07:59]} 42. Qa4 {[%emt 0:02:37]} Kf8 {[%emt 0:05:31]} 43. Qd7 {[%emt 0:03:44]} Qb4 {[%emt 0:00:27]} 44. Qd8+ {[%emt 0:02:52]} Kg7 {[%emt 0:00:09]} 45. Qe8 {[%emt 0:00:08]} Qd4 {[%emt 0:00:55]} 46. Qe7 {[%emt 0:00:49]} Qa1+ {[%emt 0:00:14]} 47. Kg2 {[%emt 0:00:22]} a4 {[%emt 0:00:05]} 48. f4 {[%emt 0:00:39]} a3 {[%emt 0:01:12]} 49. f5 {[%emt 0:00:15]} a2 {[%emt 0:00:14]} 50. fxg6 {[%emt 0:00:48]} Qf6 {[%emt 0:00:11]} 51. gxf7 {[%emt 0:01:35]} Qxe7 {[%emt 0:09:51]} 0-1

[Event "Catalan Youth Championship 2024"]
[Site "Cambrils"]
[Date "2024.03.25"]
[Round "5.21"]
[White "Serrano Batova, Vicent"]
[Black "Jurado Coderch, Heribert"]
[Result "1-0"]
[ECO "D05"]
[WhiteElo "2104"]
[BlackElo "1960"]
[Annotator "RC"]
[PlyCount "45"]
[EventDate "2024.03.13"]
[EventType "swiss"]
[EventCountry "ESP"]
[SourceTitle "playchess.com"]
[Source "ChessBase"]
[SourceQuality "1"]
[TimeControl "5400+30"]

1. d4 {[%emt 0:00:03]} d5 {[%emt 0:00:35]} 2. Nf3 {[%emt 0:00:01]} Nf6 {[%emt 0:00:09]} 3. e3 {[%emt 0:00:02]} e6 {[%emt 0:00:07]} 4. b3 {[%emt 0:00:04]} b6 {[%emt 0:00:05]} 5. Bb2 {[%emt 0:00:19]} Bb7 {[%emt 0:00:09]} 6. Bd3 {[%emt 0:00:07]} Bd6 {[%emt 0:00:09]} 7. O-O {[%emt 0:00:22]} O-O {[%emt 0:00:09]} 8. Nbd2 {[%emt 0:00:09]} c5 {[%emt 0:00:14]} 9. Ne5 {[%emt 0:00:16]} Nc6 {[%emt 0:00:22]} 10. a3 {[%emt 0:00:14]} Rc8 {[%emt 0:00:09]} 11. f4 {[%emt 0:03:36]} Ne7 {[%emt 0:00:13]} 12. Ng4 {[%emt 0:00:01]} Nf5 {[%emt 0:09:21]} 13. dxc5 {[%emt 0:13:28]} Bxc5 {[%emt 0:01:50]} 14. Bxf5 {[%emt 0:13:07]} exf5 {[%emt 0:01:41]} 15. Nxf6+ {[%emt 0:00:39]} gxf6 {[%emt 0:00:02]} 16. Rf3 {[%emt 0:01:53]} Kh8 {[%emt 0:08:18]} 17. b4 {[%emt 0:06:45]} Be7 {[%emt 0:15:37]} 18. Rh3 {[%emt 0:01:35]} Rg8 {[%emt 0:00:38]} 19. Bd4 {[%emt 0:00:02]} Rg7 {[%emt 0:00:49]} 20. Nf3 {[%emt 0:06:35]} Qc7 {[%emt 0:02:35]} 21. c3 {[%emt 0:01:44]} Rcg8 {[%emt 0:01:08]} 22. Ng5 {[%emt 0:07:05]} fxg5 {[%emt 0:04:56]} 23. Rxh7+ {[%emt 0:43:53]} 1-0

[Event "Catalan Youth Championship 2024"]
[Site "Cambrils"]
[Date "2024.03.25"]
[Round "5.22"]
[White "Martin Barcelo, Carles"]
[Black "Gomez Navais, Marcal"]
[Result "1-0"]
[ECO "B51"]
[WhiteElo "2234"]
[BlackElo "2086"]
[Annotator "RC"]
[PlyCount "89"]
[EventDate "2024.03.13"]
[EventType "swiss"]
[EventCountry "ESP"]
[SourceTitle "playchess.com"]
[Source "ChessBase"]
[SourceQuality "1"]
[TimeControl "5400+30"]

1. e4 {[%emt 0:01:05]} c5 {[%emt 0:00:07]} 2. Nf3 {[%emt 0:00:17]} d6 {[%emt 0:00:08]} 3. Bb5+ {[%emt 0:00:33]} Nd7 {[%emt 0:00:07]} 4. Ba4 {[%emt 0:00:21]} Ngf6 {[%emt 0:02:51]} 5. O-O {[%emt 0:00:59]} g6 {[%emt 0:06:08]} 6. Re1 {[%emt 0:02:02]} Bg7 {[%emt 0:00:26]} 7. c3 {[%emt 0:00:18]} a6 {[%emt 0:05:37]} 8. d4 {[%emt 0:00:44]} cxd4 {[%emt 0:01:24]} 9. cxd4 {[%emt 0:00:09]} O-O {[%emt 0:02:15]} 10. Bb3 {[%emt 0:02:52]} e5 {[%emt 0:05:23]} 11. Nc3 {[%emt 0:09:59]} b5 {[%emt 0:02:56]} 12. a4 {[%emt 0:24:40]} b4 {[%emt 0:08:48]} 13. Nd5 {[%emt 0:00:38]} Nxd5 {[%emt 0:03:25]} 14. Bxd5 {[%emt 0:00:24]} Rb8 {[%emt 0:00:15]} 15. Bg5 {[%emt 0:03:01]} Bf6 {[%emt 0:58:10]} 16. Be3 {[%emt 0:12:42]} Nb6 {[%emt 0:00:00]} 17. dxe5 {[%emt 0:10:02]} dxe5 {[%emt 0:00:00]} 18. Bc5 {[%emt 0:01:26]} Re8 {[%emt 0:00:00]} 19. Bd6 {[%emt 0:01:19]} Rb7 {[%emt 0:00:00]} 20. Bxb7 {[%emt 0:00:57]} Bxb7 {[%emt 0:00:00]} 21. Bxb4 {[%emt 0:05:34]} Qa8 {[%emt 0:00:00]} 22. a5 {[%emt 0:04:21]} Nc8 {[%emt 0:00:00]} 23. Qe2 {[%emt 0:05:30]} Na7 {[%emt 0:00:00]} 24. Nd2 {[%emt 0:00:48]} Nb5 {[%emt 0:00:00]} 25. Bc3 {[%emt 0:00:06]} Bc6 {[%emt 0:00:00]} 26. Nc4 {[%emt 0:03:49]} Qc8 {[%emt 0:00:00]} 27. Nb6 {[%emt 0:01:47]} Qb7 {[%emt 0:00:00]} 28. Rad1 {[%emt 0:02:52]} Be7 {[%emt 0:00:00]} 29. Nd5 {[%emt 0:01:03]} Bd8 {[%emt 0:00:00]} 30. Qc4 {[%emt 0:01:30]} Nd6 {[%emt 0:00:00]} 31. Qb4 {[%emt 0:01:23]} Nb5 {[%emt 0:00:00]} 32. Qc5 {[%emt 0:00:31]} Re6 {[%emt 0:00:00]} 33. Nf4 {[%emt 0:01:25]} Re8 {[%emt 0:00:00]} 34. Nd5 {[%emt 0:00:46]} Re6 {[%emt 0:00:00]} 35. Kh1 {[%emt 0:01:14]} h5 {[%emt 0:00:00]} 36. f3 {[%emt 0:00:09]} h4 {[%emt 0:00:21]} 37. Re2 {[%emt 0:01:01]} h3 {[%emt 0:01:04]} 38. gxh3 {[%emt 0:00:09]} Bg5 {[%emt 0:02:48]} 39. Rg2 {[%emt 0:00:16]} Bh4 {[%emt 0:00:29]} 40. Rg4 {[%emt 0:00:55]} Bd8 {[%emt 0:07:48]} 41. Nf4 {[%emt 0:00:45]} Re8 {[%emt 0:00:00]} 42. Nxg6 {[%emt 0:00:12]} Kh7 {[%emt 0:00:00]} 43. Nf8+ {[%emt 0:00:48]} Kh6 {[%emt 0:00:00]} 44. Qe3+ {[%emt 0:00:30]} Kh5 {[%emt 0:00:00]} 45. Bd2 {[%emt 0:00:25]} 1-0

[Event "Catalan Youth Championship 2024"]
[Site "Cambrils"]
[Date "2024.03.25"]
[Round "5.23"]
[White "Rocamora Martorell, Ferran"]
[Black "Pujol Biosca, Joan"]
[Result "1-0"]
[ECO "E62"]
[WhiteElo "2118"]
[BlackElo "1979"]
[Annotator "RC"]
[PlyCount "93"]
[EventDate "2024.03.13"]
[EventType "swiss"]
[EventCountry "ESP"]
[SourceTitle "playchess.com"]
[Source "ChessBase"]
[SourceQuality "1"]
[TimeControl "5400+30"]

1. Nf3 {[%emt 0:01:32]} Nf6 {[%emt 1:31:00]} 2. c4 {[%emt 0:00:07]} g6 {[%emt 0:00:00]} 3. g3 {[%emt 0:01:15]} Bg7 {[%emt 0:00:00]} 4. Bg2 {[%emt 0:00:08]} O-O {[%emt 0:01:30]} 5. d4 {[%emt 0:01:27]} d6 {[%emt 0:00:30]} 6. O-O {[%emt 0:00:25]} Nc6 {[%emt 0:00:30]} 7. Nc3 {[%emt 0:00:42]} e5 {[%emt 0:00:30]} 8. h3 {[%emt 1:28:54]} Nd7 {[%emt 0:00:30]} 9. Be3 {[%emt 0:00:30]} Re8 {[%emt 0:00:30]} 10. Qd2 {[%emt 0:00:30]} Nb6 {[%emt 0:00:30]} 11. b3 {[%emt 0:00:30]} e4 {[%emt 0:00:30]} 12. Ne1 {[%emt 0:00:30]} f5 {[%emt 0:00:30]} 13. Nc2 {[%emt 0:00:30]} Ne7 {[%emt 0:00:30]} 14. d5 {[%emt 0:00:30]} c5 {[%emt 0:00:30]} 15. Bf4 {[%emt 0:00:30]} a6 {[%emt 0:00:30]} 16. f3 {[%emt 0:00:30]} exf3 {[%emt 0:00:30]} 17. Bxf3 {[%emt 0:00:30]} Kh8 {[%emt 0:00:30]} 18. Rae1 {[%emt 0:00:30]} Ng8 {[%emt 0:00:30]} 19. e4 {[%emt 0:00:30]} Nf6 {[%emt 0:00:00]} 20. e5 {[%emt 0:00:30]} dxe5 {[%emt 0:00:00]} 21. Rxe5 {[%emt 0:00:30]} Ne4 {[%emt 0:01:30]} 22. Rxe8+ {[%emt 0:00:00]} Qxe8 {[%emt 0:00:30]} 23. Re1 {[%emt 0:01:00]} Qf8 {[%emt 0:00:00]} 24. Bxe4 {[%emt 0:00:00]} fxe4 {[%emt 0:00:00]} 25. Nxe4 {[%emt 0:01:00]} Bxh3 {[%emt 0:01:30]} 26. Kh2 {[%emt 0:00:30]} Bf5 {[%emt 0:00:30]} 27. Ng5 {[%emt 0:00:30]} Re8 {[%emt 0:00:30]} 28. Bd6 {[%emt 0:00:00]} Qg8 {[%emt 0:00:30]} 29. Ne3 {[%emt 0:01:00]} Nd7 {[%emt 0:00:30]} 30. Nxf5 {[%emt 0:00:00]} gxf5 {[%emt 0:00:30]} 31. Ne6 {[%emt 0:01:00]} Bf6 {[%emt 0:00:00]} 32. Qf4 {[%emt 0:00:30]} Qg6 {[%emt 0:01:00]} 33. Rf1 {[%emt 0:00:00]} Qh5+ {[%emt 0:00:00]} 34. Kg2 {[%emt 0:01:00]} Qe2+ {[%emt 0:00:00]} 35. Rf2 {[%emt 0:00:30]} Qe4+ {[%emt 0:00:00]} 36. Qxe4 {[%emt 0:00:00]} fxe4 {[%emt 0:00:00]} 37. Rxf6 {[%emt 0:01:00]} Nxf6 {[%emt 0:00:00]} 38. Be5 {[%emt 0:00:00]} Kg8 {[%emt 0:00:00]} 39. Bxf6 {[%emt 0:01:00]} Kf7 {[%emt 0:03:30]} 40. Bc3 {[%emt 0:00:00]} b6 {[%emt 0:00:00]} 41. g4 {[%emt 0:01:00]} Rg8 {[%emt 0:01:00]} 42. Kg3 {[%emt 0:00:30]} h6 {[%emt 0:00:30]} 43. Kf4 {[%emt 0:00:00]} Ke7 {[%emt 0:00:30]} 44. Ng7 {[%emt 0:00:00]} Rf8+ {[%emt 0:00:00]} 45. Nf5+ {[%emt 0:00:00]} Kd7 {[%emt 0:00:00]} 46. Kxe4 {[%emt 0:00:00]} Re8+ {[%emt 0:00:00]} 47. Be5 {[%emt 0:02:30]} 1-0

[Event "Catalan Youth Championship 2024"]
[Site "Cambrils"]
[Date "2024.03.25"]
[Round "5.24"]
[White "Vara Soler, Luis"]
[Black "Olcina Monells, Jordi"]
[Result "1/2-1/2"]
[ECO "C68"]
[WhiteElo "1889"]
[BlackElo "1929"]
[Annotator "NA RC"]
[PlyCount "41"]
[EventDate "2024.03.13"]
[EventType "swiss"]
[EventCountry "ESP"]
[SourceTitle "playchess.com"]
[Source "ChessBase"]
[SourceQuality "1"]
[TimeControl "5400+30"]

1. e4 {[%emt 0:00:03]} e5 {[%emt 0:00:09]} 2. Nf3 {[%emt 0:00:09]} Nc6 {[%emt 0:00:06]} 3. Bb5 {[%emt 0:00:09]} a6 {[%emt 0:00:11]} 4. Bxc6 {[%emt 0:00:10]} dxc6 {[%emt 0:00:10]} 5. O-O {[%emt 0:00:08]} Bg4 {[%emt 0:01:09]} 6. h3 {[%emt 0:00:07]} h5 {[%emt 0:00:11]} 7. d3 {[%emt 0:00:08]} Qf6 {[%emt 0:00:24]} 8. Nbd2 {[%emt 0:00:06]} Ne7 {[%emt 0:00:59]} 9. Re1 {[%emt 0:00:05]} Ng6 {[%emt 0:07:00]} 10. d4 {[%emt 1:34:25]} Bd6 {[%emt 1:25:11]} 11. hxg4 {[%emt 0:00:00]} hxg4 {[%emt 0:00:00]} 12. Nh2 {[%emt 0:00:00]} Rxh2 {[%emt 0:00:00]} 13. Qxg4 {[%emt 0:00:00]} Qh4 {[%emt 0:00:00]} 14. Qxh4 {[%emt 0:00:00]} Rxh4 {[%emt 0:00:00]} 15. Nf3 {[%emt 0:00:00]} Rh8 {[%emt 0:00:00]} 16. dxe5 {[%emt 0:00:00]} Nxe5 {[%emt 0:00:00]} 17. Nxe5 {[%emt 0:00:00]} Bxe5 {[%emt 0:00:00]} 18. g3 {[%emt 0:00:00]} O-O-O {[%emt 0:00:00]} 19. Kg2 {[%emt 0:00:00]} Rd7 {[%emt 0:00:00]} 20. c3 {[%emt 0:05:00]} Rhd8 {[%emt 0:05:00]} 21. f4 1/2-1/2